Cogmind - Beta 16 @@@ ROGUE MODE // 2025.10.25 @ 03:13:00 Player: Zaros426 Result: Destroyed by as-91787 with Assembled Maul Performance ------------- Evolutions (0) 0 Regions Visited (2) 400 Robots Destroyed (48) 240 Value Destroyed (698) 698 Prototype IDs (1) 20 Alien Tech Used (0) 0 Bonus (0) 0 TOTAL SCORE: 1358 Bonus ------- None Cogmind --------- Core Integrity 0/250 Matter 293/300 Energy 280/280 System Corruption 0% Temperature Cool (0) Movement Treading (160) Location -10/Mines Parts ------- > --- POWER (1) -------- Heavy Ion Engine > --- PROPULSION (2) --- Light Treads Light Treads > --- UTILITY (2) ------ Large Storage Unit Targeting Computer > --- WEAPON (2) ------- Assault Rifle Light Cannon > --- INVENTORY (15) --- Heavy Ion Engine Large Storage Unit Structural Scanner Seismic Detector Seismic Detector Transport Network Coupler ECM Suite Hacking Suite Datajack Mining Laser Plasma Cutter Peak State ------------ > --- POWER ------------ Heavy Ion Engine > --- PROPULSION ------- Light Treads Light Treads > --- UTILITY ---------- Large Storage Unit Targeting Computer > --- WEAPON ----------- Medium Laser Medium Laser > --- INVENTORY -------- Seismic Detector Seismic Detector Transport Network Coupler ECM Suite Hacking Suite Assault Rifle Light Cannon Datajack Mining Laser [Rating: 10] Favorites ----------- Power Ion Engine Engine Ion Engine Propulsion Light Treads Treads Light Treads Utility Large Storage Unit Device Seismic Detector Storage Large Storage Unit Processor Targeting Computer Weapon Assault Rifle Energy Gun Medium Laser Ballistic Gun Assault Rifle Ballistic Cannon Light Cannon Build | -11 -10 -10 ------- Run | Yrd Mat Min Slots Evolved . | . . . Power . | . . . Propulsion . | . . . Utility . | . . . Weapon . | . . . Parts Attached 16 | 7 9 . Power 2 | 1 1 . Engine 2 | 1 1 . Core . | . . . Reactor . | . . . Propulsion 3 | 2 1 . Treads 3 | 2 1 . Leg . | . . . Wheel . | . . . Hover . | . . . Flight . | . . . Utility 5 | 2 3 . Device 1 | 1 . . Storage 3 | 1 2 . Processor 1 | . 1 . Hackware . | . . . Protection . | . . . Artifact . | . . . Weapon 6 | 2 4 . Energy Gun 2 | 1 1 . Energy Cannon . | . . . Ballistic Gun 2 | 1 1 . Ballistic Cannon 2 | . 2 . Launcher . | . . . Special Weapon . | . . . Impact Weapon . | . . . Slashing Weapon . | . . . Piercing Weapon . | . . . Special Melee Weapon . | . . . Unidentified Prototypes 1 | . 1 . Parts Lost 4 | . 4 . Power 1 | . 1 . Propulsion 1 | . 1 . Utility . | . . . Weapon 2 | . 2 . Highest Loss Streak 3 | . 3 . To Critical Strikes . | . . . Average Backups 7 | . 7 11 Power . | . . 1 Propulsion . | . . . Utility 4 | . 4 7 Weapon 1 | . 1 1 Tool/Special . | . . . Unused Backups 11 | 1 1 9 Power 2 | . 1 1 Propulsion . | . . . Utility 6 | 1 . 5 Weapon 1 | . . 1 Tool/Special 2 | . . 2 Average Slot Usage (%) 96 | . 96 100 Engine 13 | . 13 14 Treads 25 | . 25 28 Device 1 | . 1 . Storage 14 | . 14 14 Processor 12 | . 12 14 Energy Gun 9 | . 9 . Ballistic Gun 10 | . 10 14 Ballistic Cannon 7 | . 7 14 Peak Build Rating 10 | 7 10 10 Average Rating 7 | 6 8 10 On Entrance 5 | . 7 10 Avg Prop Armor Cover (%) 41 | 41 . . Naked Turns . | . . . Heaviest Build 33 | 15 33 33 Greatest Support 40 | 40 40 40 Greatest Overweight (x) 1 | . 1 . Average Overweight (x) . | . . . Largest Inventory Capacity 15 | 8 15 15 Average Capacity 13 | 7 14 15 Most Carried 11 | 2 11 11 Average Carried 7 | . 7 11 Final Capacity 15 | 8 15 15 Final Carried 11 | 2 11 11 Class Distribution -------------------- 100% | Mutant Dominant Class ---------------- Mutant | -10/Materials Mutant | -10/Mines Resources | -11 -10 -10 ----------- Run | Yrd Mat Min Matter Collected 803 | 327 476 . Remotely . | . . . Salvage Created 1246 | 237 1009 . Parts 90 | 24 66 . Haulers Intercepted 2 | . 2 . Recyclers Shooed 4 | . 4 . Parts Field Recycled . | . . . Retrieved Matter . | . . . Parts Self-Destructed . | . . . Prevented . | . . . Parts Restored . | . . . Kills | -11 -10 -10 ------- Run | Yrd Mat Min Combat Hostiles Destroyed 21 | . 21 . Guns 15 | . 15 . Cannons 5 | . 5 . Classes Destroyed 10 | 3 7 . Worker 7 | 2 5 . Builder 1 | . 1 . Tunneler 9 | 7 2 . Hauler 2 | . 2 . Recycler 3 | 1 2 . Mechanic 1 | . 1 . Operator 1 | . 1 . Watcher 3 | . 3 . Swarmer 9 | . 9 . Grunt 12 | . 12 . Best Kill Streak 3 | 3 3 . Combat Bots Only 3 | . 3 . Max Kills in Single Turn 1 | 1 1 . Gunslinging . | . . . Exploded . | . . . Melee . | . . . Uniques/NPCs Destroyed . | . . . Combat | -11 -10 -10 -------- Run | Yrd Mat Min Hostile Shots Fired 121 | . 114 7 Missed 38 | . 36 2 Hits 83 | . 78 5 Melee 2 | . . 2 Projectile 81 | . 78 3 AOE 5 | . . 5 Damage Taken 1125 | . 865 260 Core 250 | . 141 109 Absorbed by Shields . | . . . Regen/Repaired (Parts) 138 | . 138 . Core Remaining (%) 100 | 100 . . Volleys Fired 118 | 19 98 1 Largest 2 | 2 2 2 Hottest 100 | 70 100 50 Shots Fired 236 | 38 196 2 Gun 193 | 38 154 1 Cannon 43 | . 42 1 Launcher . | . . . Special . | . . . Kinetic 134 | 19 113 2 Thermal 102 | 19 83 . Explosive . | . . . Electromagnetic . | . . . Robot Hit Streak 14 | 5 14 3 Robot Miss Streak 8 | 2 8 . Penetration Max . | . . . Secondary Targets 1 | . 1 . Max Gunslinging Chain 1 | . 1 . Shots Hit Robots 157 | 20 135 2 Core Hits 64 | 10 53 1 Critical Kills . | . . . Critical Parts Destroyed . | . . . Critical Strikes 7 | 2 5 . Burn 7 | 2 5 . Melee Attacks . | . . . Impact . | . . . Slashing . | . . . Piercing . | . . . Sneak Attacks . | . . . Combat Hostiles . | . . . Follow-up Attacks . | . . . Damage Inflicted 2217 | 270 1916 31 Guns 1685 | 270 1402 13 Cannons 532 | . 514 18 Explosions . | . . . Melee . | . . . Ramming . | . . . Kinetic 1345 | 182 1132 31 Thermal 872 | 88 784 . Explosive . | . . . Electromagnetic . | . . . Impact . | . . . Slashing . | . . . Piercing . | . . . Highest Corruption . | . . . Average Corruption . | . . . Corruption Purged . | . . . Corruption Blocked . | . . . Overload Shots . | . . . Overflow Damage 25 | . 25 . Projectiles 25 | . 25 . Explosions . | . . . Melee . | . . . Knockbacks 7 | . 6 1 Impact . | . . . Kinetic 7 | . 6 1 Secondary . | . . . Self-Inflicted Damage . | . . . Shots . | . . . Rammed . | . . . Targets Rammed . | . . . Kicked . | . . . Crushed . | . . . Highest Temperature 316 | 27 316 . Average Temperature 45 | 10 54 . Received Heat Transfer 405 | . 405 . Siege Activations . | . . . Martial Activations . | . . . Shielding Activations . | . . . Robots Disrupted . | . . . Combat Hostiles . | . . . Robots Corrupted . | . . . Combat Hostiles . | . . . Parts Fried . | . . . Impact Corruptions . | . . . Robots Melted 1 | . 1 . Combat Hostiles 1 | . 1 . Parts Melted 4 | . 4 . Heat Transferred 2997 | 407 2590 . Parts Sabotaged . | . . . Parts Stolen . | . . . Parts Stripped . | . . . Power Chain Reactions . | . . . Alert | -11 -10 -10 ------- Run | Yrd Mat Min Maximum Alert Level 1 | . 1 . Low Security (%) 59 | 100 53 100 Level 1 40 | . 46 . Level 2 . | . . . Level 3 . | . . . Level 4 . | . . . Level 5 . | . . . High Security . | . . . Max Security . | . . . Peak Influence 307 | 10 307 126 Initial 111 | . . 111 Average 136 | 2 155 116 Influence Increases 850 | 50 785 15 Destroy 0b10 Robot/C 420 | . 420 . Destroy 0b10 Robot/NC 135 | 50 85 . Destroy Leader 110 | . 110 . Successful Hack 46 | . 46 . Select Force Hacks 60 | . 60 . Destroy Structure 4 | . 4 . Partial Spotted 15 | . . 15 Lose Combat Pursuer 60 | . 60 . Influence Decreases 734 | 50 498 186 Entered New Map 176 | . . 176 Time Decay 518 | 50 458 10 Lost Part 40 | . 40 . Squads Dispatched 6 | . 6 . Investigation 4 | . 4 . Extermination . | . . . Reinforcement 2 | . 2 . Assault . | . . . Garrison . | . . . Intercept . | . . . Searches Triggered . | . . . Construction Impeded . | . . . Haulers Reinforced . | . . . Active Scanning Responses . | . . . Cargo Convoy Interrupts . | . . . Stealth | -11 -10 -10 --------- Run | Yrd Mat Min Distress Signals 2 | . 2 . Communications Jammed . | . . . Distress Signals . | . . . Times Spotted 62 | . 41 21 Peak Tracking Total 21 | . 6 21 Tactical Retreats 4 | . 3 1 Traps | -11 -10 -10 ------- Run | Yrd Mat Min Traps Triggered 2 | . 2 . Indirectly . | . . . Trap Hack Attempts . | . . . Triggered . | . . . Disarmed . | . . . Reprogrammed . | . . . Reused . | . . . Traps Extracted . | . . . Installed . | . . . Triggered . | . . . Machines | -11 -10 -10 ---------- Run | Yrd Mat Min Machines Disabled 1 | . 1 . Max in Single Turn 1 | . 1 . Machines Repaired . | . . . Machines Dismantled . | . . . Machines Sabotaged . | . . . Overloaded Fab Kills . | . . . Hacking | -11 -10 -10 --------- Run | Yrd Mat Min Machines Accessed 9 | . 9 . Terminals 6 | . 6 . Fabricators . | . . . Repair Stations 1 | . 1 . Recycling Units 2 | . 2 . Scanalyzers . | . . . Garrison Access . | . . . Total Hacks 23 | . 23 . Successful 15 | . 15 . Failed 7 | . 7 . Catastrophic 1 | . 1 . Database Lockouts 1 | . 1 . Manual 15 | . 15 . Terminals 19 | . 19 . Fabricators . | . . . Repair Stations 2 | . 2 . Recycling Units 2 | . 2 . Scanalyzers . | . . . Garrison Access . | . . . Terminal Hacks 6 | . 6 . Robot Analysis 3 | . 3 . Scanalyzer Index 1 | . 1 . Surveillance Status 1 | . 1 . Hauler Manifests 1 | . 1 . Fabricator Hacks . | . . . Repair Station Hacks 2 | . 2 . Scan Component 1 | . 1 . Repair 1 | . 1 . Recycling Unit Hacks . | . . . Scanalyzer . | . . . Garrison Access Hacks . | . . . Unauthorized Hacks 7 | . 7 . Terminals 5 | . 5 . Skim 5 | . 5 . Fabricators . | . . . Repair Stations . | . . . Recycling Units 2 | . 2 . Tunnel 2 | . 2 . Scanalyzers . | . . . Garrison Access . | . . . Data Cores Recovered . | . . . Used . | . . . Hacking Detections 6 | . 6 . Full Trace Events . | . . . Feedback Events . | . . . Feedback Blocked . | . . . Robot Schematics Acquired . | . . . Robots Built . | . . . Authchips . | . . . Time . | . . . Total Robot Build Rating . | . . . Part Schematics Acquired . | . . . Parts Built . | . . . Authchips . | . . . Time . | . . . Total Part Build Rating . | . . . Part Studies Acquired . | . . . Parts Repaired 1 | . 1 . Time 26 | . 26 . Parts Recycled . | . . . Recycled Matter . | . . . Retrieved Matter . | . . . Retrieved Components . | . . . Parts Scanalyzed . | . . . Part Schematics Acquired . | . . . Parts Damaged . | . . . Bothacking | -11 -10 -10 ------------ Run | Yrd Mat Min Used RIF Installer . | . . . Robots Hacked . | . . . Non-combat . | . . . Combat . | . . . Robot Hacks Applied . | . . . Relay Couplers Released . | . . . Fabnet Peak Effective % . | . . . Robots Rewired . | . . . Allies Hacked . | . . . Hacks Repelled . | . . . Allies | -11 -10 -10 -------- Run | Yrd Mat Min Total Allies . | . . . Largest Group . | . . . Highest-Rated Group . | . . . Highest-Rated Ally . | . . . Total Orders . | . . . Ally Attacks . | . . . Total Damage . | . . . Kills . | . . . Allies Corrupted . | . . . Allies Melted . | . . . Intel | -11 -10 -10 ------- Run | Yrd Mat Min Active Infowar (turns) 439 | 180 259 . Seismic 439 | 180 259 . Robot Analysis Total 3 | . 3 . Derelict Logs Recovered . | . . . Drone Launches . | . . . Drone Recoveries . | . . . Exploration | -11 -10 -10 ------------- Run | Yrd Mat Min Turns Passed 2407 | 288 2081 38 Spaces Moved 929 | 142 765 22 Core 8 | 8 . . Treads 921 | 134 765 22 Legs . | . . . Wheels . | . . . Hover . | . . . Flight . | . . . Fastest Speed 50 | 50 160 160 Average Speed 169 | 153 172 160 Slowest Speed 240 | 160 240 160 Overloaded Moves . | . . . Propulsion Burnouts . | . . . Robots Hopped . | . . . Potential Cave-ins . | . . . Cave-ins Triggered . | . . . Exploration Rate (%) 40 | 8 100 13 Regions Visited 2 Branch Regions 1 Pre-discovered Areas 3 | . 3 . Known Exits Taken 1 | . 1 . Unknown Exits Taken 1 | 1 . . Scrap Searched . | . . . Spaces Dug . | . . . Terrain Destroyed . | . . . Melee . | . . . Projectile . | . . . AOE . | . . . Terrain Rammed . | . . . Walls Destroyed . | . . . Machines Disabled . | . . . Actions | -11 -10 -10 --------- Run | Yrd Mat Min Total 1522 | 171 1328 23 Wait 437 | . 437 . Move 927 | 141 764 22 Hop . | . . . Pick Up 17 | 3 14 . Fast Attach 9 | 7 2 . Attach 5 | . 5 . Detach . | . . . Swap 4 | . 4 . Drop 5 | 1 4 . Fire 118 | 19 98 1 Melee . | . . . Ram . | . . . Kick . | . . . Crush . | . . . Escape Stasis . | . . . Rewire . | . . . Trap . | . . . Miscellaneous . | . . . Route ------- -11/Scrapyard -10/Materials (discovered 5 exits: *Mat x3 / *Min / [*Sub]) -10/Mines (discovered 2 exits: *Mat x2) History --------- Turn | Location | Event 19 | -11/Scrapyard | Discovered new exit (range 15) 289 | -11/Scrapyard | Entered Materials 309 | -10/Materials | Build established: Mutant 609 | -10/Materials | Discovered new exit (range 8) 889 | -10/Materials | Derelicts attacked the area 1158 | -10/Materials | Lost 3 parts (1n2w) 1186 | -10/Materials | Discovered new exit (range 14) 1194 | -10/Materials | Core integrity fell below 50% 1579 | -10/Materials | Discovered new exit (range 10) 1695 | -10/Materials | Central database locked down 1783 | -10/Materials | Discovered new exit (range 10) 1850 | -10/Materials | Discovered new exit (range 5) 1880 | -10/Materials | Loaded intel: 8 terminal locations 1951 | -10/Materials | Repaired Lgt. Treads 2028 | -10/Materials | Learned location of 1 exit from Recycling 2087 | -10/Materials | Learned location of Storage (-7) 2138 | -10/Materials | Identified exit to Mines 2180 | -10/Materials | Learned location of 2 exits from Subcaves 2210 | -10/Materials | Learned Storage security intel 2248 | -10/Materials | Learned 4 Materials zone layouts 2297 | -10/Materials | Learned Storage security intel 2370 | -10/Materials | Entered Mines 2371 | -10/Mines | Assembled infested the area 2371 | -10/Mines | Identified exit to Materials 2391 | -10/Mines | Core integrity fell below 20% 2393 | -10/Mines | Met a Derelict bent on vengeance 2408 | -10/Mines | Destroyed by as-91787 with Assembled Maul Last Messages --------------- Loading 2 Materials entrances... 02382_ C-45 Heavy ARC bursts open, deploying its payload. 02382_ D-53 Grenadier unfolds itself. 02387_ as-63365 destroyed. 02390_ as-71641 destroyed. 02390_ as-68090 destroyed. 02390_ as-76671 destroyed. 02391_ U-05 Engineer lays Concrete. 02392_ as-27541 destroyed. 02392_ D-53 Grenadier destroyed. 02392_ as-33940 destroyed. 02393_ D-53 Grenadier destroyed. 02395_ The unstable cave ceiling collapses. 02397_ as-62841 sneak attacks. 02398_ R-06 Scavenger collects Imp. Terrain Scanner. 02399_ as-62841 sneak attacks. 02399_ R-06 Scavenger destroyed. 02399_ R-06 Scavenger collects Com. Wheel. 02402_ as-62841 sneak attacks. 02406_ as-59341 knocked back. Map ----- +----------------------------------------------------+ | ???????????????????????????????? | | ???????????????????????????????? | | ???????????????????????????????? | | ???????????????????????????????? | | ???????????????????????????????? | | ???????????????????????????????? | | ???????????????????????????????? | | ???????????????????????????????? | | ???????????????????????????????? | | ???????????????????????????????? | | ???????????????????????????????? | | ???????????????????????????????? | | ???????????????????????????????? | | ???????????????????? ??????????? | | ???????????????????? ""????????? | | ???????????????????? ""????????? | | ???????????????????# ????????? | | ???????????????????# ????????? | | ????????????????#### #????????? | | ??????????????? ## #????????? | | ???#######???? #????????? | | ??## ##### ?? #????????? | | ??# =%!#???? #????????? | | ??# u a < % #????#" #????????? | | ??# aa = #????#%"#????????? | | ??# a @## ####????#" #????????? | | ??## #### #??????## ##???????? | | ???##????# #?##?### #???????? | | ?????????# ## # # #???????? | | ?????????# # ##???????? | | ?????????# #????????? | | ?????????# %! ##???????? | | ?????????## =% #???????? | | ??????????### #???????? | | ??????????? %% #???????? | | ??????????? #???????? | | ????????? #???????? | | ?????# " #### # #??????? | | ?????# ???##### #??????? | | ?????# #???????## #??????? | | ?????## #?????????# ??????? | | ??????###???????????# ##?????? | | ?????????????????????####??????? | | ???????????????????????????????? | | ???????????????????????????????? | | | | | | | | | | | +----------------------------------------------------+ Best States ------------- Heat Dissipation 25 Energy Generation 14 Energy Capacity 280 Matter Stores 300 Matter Capacity 300 Sight Range 16 Terrain Scan Density 10 Evasion (%) 50 Targeting Accuracy 5 Recoil Reduction 2 Item Schematics ----------------- None Robot Schematics ------------------ None Fabricated ------------ Nothing Repaired ---------- Lgt. Treads | 1% | -10/Materials Studied --------- None Alien Tech Used ----------------- None Achievements -------------- None Challenges ------------ None Game ------ Seed NullEfficiencyFlakker Manual? 0 Play Time 00:11:17 Cumulative 21.6 hours Start 2025.10.25 @ 02:58:35 End 2025.10.25 @ 03:13:00 Sessions 1 Manual Loads 0 Difficulty Rogue Special Mode None Game No. 12 Rogue 12 Adventurer 0 Explorer 0 Win Type - Total 0 Types 0/0/0/0/0/0/0/0/0/0 Lore% 42 Gallery% 34 Achievement% 36 Wizard Run 0 Options --------- Layout 0 ASCII 0 Keyboard 0 Movement Mouse Keybinds 0 Fullscreen 1 Font 24/Smallcaps Map View 183x50 Zoom Use 0% Tactical HUD 1 Map Filters NONE Filters NONE Steam 1 RUN: 58ef68a5-a853-4e46-bb5e-104a83f7f8ae